[Event "Seniors-LEM-65 Sachsen-Anhalt 2024"]
[Site "Magdeburg"]
[Date "2024.07.04"]
[Round "4.1"]
[White "Kahe, Ralph"]
[Black "Kolthoff, Siegmund"]
[Result "1-0"]
[ECO "E36"]
[WhiteElo "2129"]
[BlackElo "2090"]
[Annotator "RC"]
[PlyCount "141"]
[EventDate "2024.06.25"]
[EventType "swiss"]
[EventCountry "GER"]
[SourceTitle "playchess.com"]
[Source "ChessBase"]
[SourceQuality "1"]
[TimeControl "40/5400+30:1800+30"]

1. d4 {[%emt 0:00:05]} Nf6 {[%emt 0:00:35]} 2. c4 {[%emt 0:00:06]} e6 {[%emt 0:00:26]} 3. Nc3 {[%emt 0:00:06]} Bb4 {[%emt 0:00:14]} 4. Qc2 {[%emt 0:00:39]} d5 {[%emt 0:01:40]} 5. a3 {[%emt 0:00:08]} Bxc3+ {[%emt 0:00:16]} 6. Qxc3 {[%emt 0:00:02]} O-O {[%emt 0:02:43]} 7. Nf3 {[%emt 0:02:41]} b6 {[%emt 0:04:01]} 8. cxd5 {[%emt 0:01:56]} exd5 {[%emt 0:03:37]} 9. Bg5 {[%emt 0:00:20]} Bb7 {[%emt 0:10:23]} 10. Bxf6 {[%emt 0:00:34]} gxf6 {[%emt 0:04:31]} 11. e3 {[%emt 0:01:05]} Nd7 {[%emt 0:02:27]} 12. Bd3 {[%emt 0:01:25]} Re8 {[%emt 0:00:09]} 13. O-O {[%emt 0:00:17]} Rc8 {[%emt 0:00:40]} 14. Bf5 {[%emt 0:00:25]} Rb8 {[%emt 0:00:46]} 15. Rfc1 {[%emt 0:00:56]} c6 {[%emt 0:00:13]} 16. b4 {[%emt 0:07:30]} Nf8 {[%emt 0:02:30]} 17. a4 {[%emt 0:02:12]} a6 {[%emt 0:05:54]} 18. a5 {[%emt 0:00:41]} Ng6 {[%emt 0:06:06]} 19. Bd3 {[%emt 0:02:16]} b5 {[%emt 0:00:28]} 20. Qc2 {[%emt 0:00:35]} Qd6 {[%emt 0:03:34]} 21. Rab1 {[%emt 0:00:45]} Re7 {[%emt 0:04:43]} 22. Nd2 {[%emt 0:01:11]} Rc7 {[%emt 0:00:49]} 23. Nf1 {[%emt 0:02:26]} Bc8 {[%emt 0:01:47]} 24. Qd1 {[%emt 0:00:48]} Qe6 {[%emt 0:04:16]} 25. Qf3 {[%emt 0:00:20]} Kh8 {[%emt 0:11:34]} 26. Ng3 {[%emt 0:02:07]} Bd7 {[%emt 0:00:44]} 27. Nh5 {[%emt 0:00:19]} f5 {[%emt 0:01:36]} 28. Ng3 {[%emt 0:00:23]} Ne7 {[%emt 0:03:17]} 29. Nh5 {[%emt 0:03:59]} Rg8 {[%emt 0:01:38]} 30. Nf4 {[%emt 0:00:26]} Qd6 {[%emt 0:01:21]} 31. Rc5 {[%emt 0:01:03]} Rcc8 {[%emt 0:00:27]} 32. g3 {[%emt 0:03:18]} Rg7 {[%emt 0:04:09]} 33. Ng2 {[%emt 0:01:45]} Qe6 {[%emt 0:00:53]} 34. Nh4 {[%emt 0:01:00]} Rcg8 {[%emt 0:00:52]} 35. Kh1 {[%emt 0:01:11]} Rg4 {[%emt 0:00:28]} 36. Rcc1 {[%emt 0:02:03]} R4g5 {[%emt 0:00:55]} 37. Re1 {[%emt 0:07:02]} Nc8 {[%emt 0:00:56]} 38. Qf4 {[%emt 0:03:47]} Nd6 {[%emt 0:03:34]} 39. Qe5+ {[%emt 0:01:51]} f6 {[%emt 0:04:44]} 40. Qxe6 {[%emt 0:03:19]} Bxe6 {[%emt 0:00:07]} 41. Rbc1 {[%emt 0:33:13]} Bd7 {[%emt 0:31:03]} 42. Kg1 {[%emt 0:05:08]} Re8 {[%emt 0:00:52]} 43. Nf3 {[%emt 0:00:35]} Rg7 {[%emt 0:00:16]} 44. Nd2 {[%emt 0:00:06]} Rge7 {[%emt 0:01:18]} 45. Kg2 {[%emt 0:05:36]} Kg7 {[%emt 0:01:20]} 46. Nb3 {[%emt 0:00:24]} Kh8 {[%emt 0:01:53]} 47. Nc5 {[%emt 0:00:23]} Bc8 {[%emt 0:00:11]} 48. Kf3 {[%emt 0:02:18]} Rg7 {[%emt 0:01:05]} 49. Rh1 {[%emt 0:02:30]} Rg4 {[%emt 0:02:03]} 50. h3 {[%emt 0:00:23]} Rg7 {[%emt 0:00:01]} 51. Nxa6 {[%emt 0:08:47]} Nc4 {[%emt 0:00:00]} 52. Nc5 {[%emt 0:00:00]} Rge7 {[%emt 0:00:00]} 53. Rce1 {[%emt 0:00:00]} Nd6 {[%emt 0:00:00]} 54. Nb3 {[%emt 0:00:00]} Be6 {[%emt 0:00:00]} 55. Nc1 {[%emt 0:00:00]} Bf7 {[%emt 0:00:00]} 56. Ne2 {[%emt 0:00:00]} Bh5+ {[%emt 0:00:00]} 57. g4 {[%emt 0:00:00]} Bg6 {[%emt 0:00:00]} 58. Nf4 {[%emt 0:00:00]} fxg4+ {[%emt 0:00:00]} 59. hxg4 {[%emt 0:00:00]} Bxd3 {[%emt 0:00:00]} 60. Nxd3 {[%emt 0:00:00]} Rg8 {[%emt 0:00:00]} 61. Rh6 {[%emt 0:00:00]} Ne4 {[%emt 0:00:00]} 62. Reh1 {[%emt 0:00:00]} Ng5+ {[%emt 0:00:00]} 63. Ke2 {[%emt 0:00:00]} Ne6 {[%emt 0:00:00]} 64. Kd2 {[%emt 0:00:00]} Rxg4 {[%emt 0:00:00]} 65. Rxf6 {[%emt 0:00:00]} Kg7 {[%emt 0:01:20]} 66. Rfh6 {[%emt 0:00:00]} Kg8 {[%emt 0:00:20]} 67. Ne5 {[%emt 0:00:00]} Rg2 {[%emt 0:01:01]} 68. R1h2 {[%emt 0:00:00]} Rxh2 {[%emt 0:00:19]} 69. Rxh2 {[%emt 0:00:00]} Ng5 {[%emt 0:02:08]} 70. Rg2 {[%emt 0:00:00]} Rg7 {[%emt 0:00:09]} 71. Ke2 {[%emt 0:00:00]} 1-0

[Event "Seniors-LEM-65 Sachsen-Anhalt 2024"]
[Site "Magdeburg"]
[Date "2024.07.04"]
[Round "4.2"]
[White "Schnelzer, Reinhold"]
[Black "Bregler, Herbert"]
[Result "1-0"]
[ECO "D37"]
[WhiteElo "2162"]
[BlackElo "1952"]
[Annotator "RC"]
[PlyCount "57"]
[EventDate "2024.06.25"]
[EventType "swiss"]
[EventCountry "GER"]
[SourceTitle "playchess.com"]
[Source "ChessBase"]
[SourceQuality "1"]
[TimeControl "40/5400+30:1800+30"]

1. d4 {[%emt 0:00:05]} Nf6 {[%emt 0:00:09]} 2. c4 {[%emt 0:00:10]} e6 {[%emt 0:00:08]} 3. Nf3 {[%emt 0:00:11]} d5 {[%emt 0:00:14]} 4. Nc3 {[%emt 0:00:20]} Be7 {[%emt 0:00:42]} 5. Bf4 {[%emt 0:00:38]} O-O {[%emt 0:00:28]} 6. e3 {[%emt 0:00:23]} b6 {[%emt 0:04:05]} 7. cxd5 {[%emt 0:03:45]} Nxd5 {[%emt 0:00:37]} 8. Nxd5 {[%emt 0:00:21]} Qxd5 {[%emt 0:00:53]} 9. Be2 {[%emt 0:00:33]} c5 {[%emt 0:05:34]} 10. dxc5 {[%emt 0:10:34]} Bb7 {[%emt 0:10:08]} 11. Qxd5 {[%emt 0:17:51]} Bxd5 {[%emt 0:01:03]} 12. cxb6 {[%emt 0:06:01]} Bb4+ {[%emt 0:02:50]} 13. Kf1 {[%emt 0:01:03]} axb6 {[%emt 0:00:25]} 14. a3 {[%emt 0:00:12]} Be7 {[%emt 0:01:20]} 15. Ne5 {[%emt 0:05:28]} f6 {[%emt 0:11:04]} 16. Nd3 {[%emt 0:01:41]} e5 {[%emt 0:02:16]} 17. Bg3 {[%emt 0:00:40]} Nd7 {[%emt 0:04:32]} 18. f3 {[%emt 0:01:25]} Rfc8 {[%emt 0:02:35]} 19. Kf2 {[%emt 0:01:49]} b5 {[%emt 0:15:43]} 20. Rhc1 {[%emt 0:10:08]} Nb6 {[%emt 0:02:55]} 21. Rxc8+ {[%emt 0:08:16]} Rxc8 {[%emt 0:01:11]} 22. Rc1 {[%emt 0:00:11]} Rxc1 {[%emt 0:02:03]} 23. Nxc1 {[%emt 0:00:02]} b4 {[%emt 0:00:24]} 24. axb4 {[%emt 0:02:24]} Bxb4 {[%emt 0:00:10]} 25. Bb5 {[%emt 0:03:46]} Bd2 {[%emt 0:19:11]} 26. Nd3 {[%emt 0:02:36]} Kf7 {[%emt 0:07:07]} 27. Ke2 {[%emt 0:01:32]} Bc4 {[%emt 0:01:14]} 28. Bxc4+ {[%emt 0:01:32]} Nxc4 {[%emt 0:00:06]} 29. b3 {[%emt 0:00:43]} 1-0

[Event "Seniors-LEM-65 Sachsen-Anhalt 2024"]
[Site "Magdeburg"]
[Date "2024.07.04"]
[Round "4.3"]
[White "Jacob, Helmut"]
[Black "Okrajek, Alexander"]
[Result "1/2-1/2"]
[ECO "B06"]
[WhiteElo "2047"]
[BlackElo "2163"]
[Annotator "RC"]
[PlyCount "105"]
[EventDate "2024.06.25"]
[EventType "swiss"]
[EventCountry "GER"]
[SourceTitle "playchess.com"]
[Source "ChessBase"]
[SourceQuality "1"]
[TimeControl "40/5400+30:1800+30"]

1. e4 {[%emt 0:00:03]} g6 {[%emt 0:01:53]} 2. d4 {[%emt 0:00:07]} Bg7 {[%emt 0:00:05]} 3. Nc3 {[%emt 0:00:10]} d6 {[%emt 0:00:14]} 4. Be3 {[%emt 0:00:16]} a6 {[%emt 0:00:10]} 5. h3 {[%emt 0:00:40]} b5 {[%emt 0:02:42]} 6. a3 {[%emt 0:01:03]} Nd7 {[%emt 0:01:02]} 7. Nge2 {[%emt 0:10:26]} Bb7 {[%emt 0:01:52]} 8. g3 {[%emt 0:06:15]} a5 {[%emt 0:14:03]} 9. Bg2 {[%emt 0:00:13]} b4 {[%emt 0:00:38]} 10. Nd5 {[%emt 0:01:56]} Ngf6 {[%emt 0:08:23]} 11. Nxf6+ {[%emt 0:10:20]} Nxf6 {[%emt 0:01:49]} 12. d5 {[%emt 0:03:41]} O-O {[%emt 0:04:37]} 13. O-O {[%emt 0:02:19]} Qd7 {[%emt 0:03:41]} 14. Qd2 {[%emt 0:04:10]} c5 {[%emt 0:05:54]} 15. dxc6 {[%emt 0:16:24]} Qxc6 {[%emt 0:03:54]} 16. f3 {[%emt 0:00:12]} Ba6 {[%emt 0:03:34]} 17. Nd4 {[%emt 0:02:47]} Qb7 {[%emt 0:03:20]} 18. Rfb1 {[%emt 0:05:13]} Bc4 {[%emt 0:04:59]} 19. axb4 {[%emt 0:00:34]} axb4 {[%emt 0:00:34]} 20. Rxa8 {[%emt 0:00:58]} Rxa8 {[%emt 0:00:20]} 21. b3 {[%emt 0:01:33]} Be6 {[%emt 0:01:36]} 22. Nxe6 {[%emt 0:04:00]} fxe6 {[%emt 0:00:08]} 23. Bf2 {[%emt 0:04:49]} Nd7 {[%emt 0:05:15]} 24. Rd1 {[%emt 0:04:00]} Rc8 {[%emt 0:01:37]} 25. Bf1 {[%emt 0:01:26]} Bc3 {[%emt 0:02:50]} 26. Qe3 {[%emt 0:01:55]} Kg7 {[%emt 0:04:09]} 27. Bc4 {[%emt 0:00:19]} e5 {[%emt 0:01:19]} 28. Qe2 {[%emt 0:00:50]} Rf8 {[%emt 0:01:18]} 29. Kg2 {[%emt 0:01:51]} Nf6 {[%emt 0:06:22]} 30. Qd3 {[%emt 0:01:03]} Ra8 {[%emt 0:02:00]} 31. Qe2 {[%emt 0:01:24]} Ra2 {[%emt 0:00:39]} 32. Be3 {[%emt 0:01:27]} Qa8 {[%emt 0:03:21]} 33. Bd3 {[%emt 0:02:15]} e6 {[%emt 0:02:34]} 34. Bg5 {[%emt 0:04:09]} d5 {[%emt 0:02:28]} 35. Qe3 {[%emt 0:02:08]} Nd7 {[%emt 0:03:43]} 36. Bh6+ {[%emt 0:01:42]} Kg8 {[%emt 0:00:48]} 37. Qg5 {[%emt 0:00:40]} Kf7 {[%emt 0:02:29]} 38. Qe3 {[%emt 0:03:00]} Qa7 {[%emt 0:00:43]} 39. Qxa7 {[%emt 0:01:12]} Rxa7 {[%emt 0:00:05]} 40. Be3 {[%emt 0:01:11]} Ra2 {[%emt 0:00:36]} 41. Kf1 {[%emt 0:16:00]} d4 {[%emt 0:01:23]} 42. Bd2 {[%emt 0:01:01]} Nc5 {[%emt 0:03:11]} 43. Ke2 {[%emt 0:00:56]} Kf6 {[%emt 0:01:01]} 44. h4 {[%emt 0:00:29]} Kg7 {[%emt 0:01:17]} 45. Rb1 {[%emt 0:03:00]} Kf7 {[%emt 0:07:30]} 46. Bg5 {[%emt 0:00:24]} Nd7 {[%emt 0:03:01]} 47. Rh1 {[%emt 0:02:44]} Nf6 {[%emt 0:00:58]} 48. Bxf6 {[%emt 0:00:24]} Kxf6 {[%emt 0:00:09]} 49. Rf1 {[%emt 0:00:22]} Ra1 {[%emt 0:01:20]} 50. Rxa1 {[%emt 0:00:04]} Bxa1 {[%emt 0:00:08]} 51. Kf2 {[%emt 0:00:18]} Bc3 {[%emt 0:00:44]} 52. Kg2 {[%emt 0:00:10]} Be1 {[%emt 0:00:30]} 53. Bc4 {[%emt 0:00:28]} 1/2-1/2

[Event "Seniors-LEM-65 Sachsen-Anhalt 2024"]
[Site "Magdeburg"]
[Date "2024.07.04"]
[Round "4.4"]
[White "Lapp, Karl"]
[Black "Babrikowski, Peter"]
[Result "0-1"]
[ECO "A46"]
[WhiteElo "2001"]
[BlackElo "2129"]
[Annotator "NA RC"]
[PlyCount "56"]
[EventDate "2024.06.25"]
[EventType "swiss"]
[EventCountry "GER"]
[SourceTitle "playchess.com"]
[Source "ChessBase"]
[SourceQuality "1"]
[TimeControl "40/5400+30:1800+30"]

1. d4 {[%emt 0:00:08]} Nf6 {[%emt 0:00:20]} 2. Nf3 {[%emt 0:00:41]} e6 {[%emt 0:00:42]} 3. Bf4 {[%emt 0:00:21]} c5 {[%emt 0:00:24]} 4. e3 {[%emt 0:01:44]} Nc6 {[%emt 0:00:42]} 5. Nc3 {[%emt 0:00:53]} cxd4 {[%emt 0:02:48]} 6. Nb5 {[%emt 0:05:03]} d6 {[%emt 0:02:13]} 7. exd4 {[%emt 0:04:21]} a6 {[%emt 0:04:13]} 8. Nc3 {[%emt 0:00:37]} Qa5 {[%emt 0:01:16]} 9. Bd3 {[%emt 0:02:47]} Nb4 {[%emt 0:04:38]} 10. O-O {[%emt 0:04:17]} Nxd3 {[%emt 0:00:09]} 11. Qxd3 {[%emt 0:00:36]} Be7 {[%emt 0:00:50]} 12. Rfe1 {[%emt 0:03:30]} O-O {[%emt 0:04:18]} 13. Bg5 {[%emt 0:06:44]} h6 {[%emt 0:11:30]} 14. Bd2 {[%emt 0:04:51]} Qc7 {[%emt 0:07:41]} 15. Ne4 {[%emt 0:08:25]} Bd7 {[%emt 0:04:11]} 16. Nxf6+ {[%emt 0:03:17]} Bxf6 {[%emt 0:00:12]} 17. Re4 {[%emt 0:00:27]} Bb5 $17 {[%emt 0:09:34]} 18. Qa3 {[%emt 0:04:46]} Qxc2 {[%emt 0:08:10]} 19. Rg4 {[%emt 0:00:37]} Kh8 {[%emt 0:00:28]} 20. Qxd6 {[%emt 0:05:46]} Qxb2 {[%emt 0:03:40]} 21. Re1 {[%emt 0:01:20]} Bc6 {[%emt 0:00:31]} 22. Bxh6 {[%emt 0:05:02]} gxh6 {[%emt 0:01:21]} 23. Qf4 {[%emt 0:02:43]} Bg7 {[%emt 0:00:29]} 24. Rh4 {[%emt 0:01:31]} Bxf3 {[%emt 0:01:38]} 25. Rxh6+ {[%emt 0:02:46]} Kg8 {[%emt 0:00:14]} 26. gxf3 {[%emt 0:00:14]} Qxd4 {[%emt 0:01:13]} 27. Re4 {[%emt 0:00:44]} Qa1+ {[%emt 0:01:51]} 28. Kg2 {[%emt 0:00:09]} Rfd8 {[%emt 0:02:28]} 0-1

[Event "Seniors-LEM-65 Sachsen-Anhalt 2024"]
[Site "Magdeburg"]
[Date "2024.07.04"]
[Round "4.5"]
[White "Broemel, Richard"]
[Black "Bauer, Burkhard"]
[Result "1-0"]
[ECO "D02"]
[WhiteElo "2123"]
[BlackElo "2043"]
[Annotator "NA RC"]
[PlyCount "83"]
[EventDate "2024.06.25"]
[EventType "swiss"]
[EventCountry "GER"]
[SourceTitle "playchess.com"]
[Source "ChessBase"]
[SourceQuality "1"]
[TimeControl "40/5400+30:1800+30"]

1. d4 {[%emt 0:00:04]} d5 {[%emt 0:00:19]} 2. Nf3 {[%emt 0:00:22]} Nf6 {[%emt 0:00:57]} 3. Bf4 {[%emt 0:00:13]} g6 {[%emt 0:00:51]} 4. e3 {[%emt 0:00:19]} Bg7 {[%emt 0:00:01]} 5. Nbd2 {[%emt 0:00:15]} O-O {[%emt 0:00:05]} 6. Bd3 {[%emt 0:00:42]} b6 {[%emt 0:00:21]} 7. Qe2 {[%emt 0:00:36] D02: 1 d4 d5 2 Nf3 sidelines, including 2...Nf6 3 g3 and 2...Nf6 3 Bf4.} Bb7 {[%emt 0:00:03]} 8. h4 {[%emt 0:05:12]} c5 {[%emt 0:00:36]} 9. c3 {[%emt 0:00:25]} Nc6 {[%emt 0:03:39]} 10. h5 {[%emt 0:05:28]} Re8 {[%emt 0:03:08]} (10... Nxh5 $11 11. Rxh5 gxh5) 11. hxg6 {[%emt 0:00:36]} hxg6 {[%emt 0:00:13]} 12. Ne5 {[%emt 0:02:58]} Qc8 {[%emt 0:19:57]} 13. f3 {[%emt 0:12:25]} Nd7 {[%emt 0:06:59]} 14. Nxg6 {[%emt 0:03:27]} fxg6 {[%emt 0:00:25]} 15. Bxg6 {[%emt 0:00:10]} e5 {[%emt 0:00:15]} 16. dxe5 {[%emt 0:09:56]} Ndxe5 {[%emt 0:00:26]} 17. Bxe8 {[%emt 0:01:55]} Ba6 {[%emt 0:00:08]} 18. Bxc6 {[%emt 0:06:41]} Bxe2 {[%emt 1:01:07]} 19. Bxd5+ {[%emt 0:48:16]} Kf8 {[%emt 0:00:00]} 20. Bxa8 {[%emt 0:00:00]} Ba6 {[%emt 0:00:00]} 21. Be4 {[%emt 0:00:00]} Nd3+ {[%emt 0:00:00]} 22. Bxd3 {[%emt 0:00:00]} Bxd3 {[%emt 0:00:00]} 23. Kf2 {[%emt 0:00:00]} Qa6 {[%emt 0:00:00]} 24. Bh6 {[%emt 0:00:00]} Bg6 {[%emt 0:00:00]} 25. Bxg7+ {[%emt 0:00:00]} Kxg7 $18 {[%emt 0:00:00]} 26. c4 {[%emt 0:00:00]} Qa5 {[%emt 0:00:00]} 27. Ke2 {[%emt 0:00:00]} b5 {[%emt 0:00:00]} 28. e4 {[%emt 0:00:00]} Bf7 {[%emt 0:00:00]} 29. Rhc1 {[%emt 0:00:00]} a6 {[%emt 0:00:00]} 30. b3 {[%emt 0:00:00]} b4 {[%emt 0:00:00]} 31. Rc2 {[%emt 0:00:00]} Qc7 {[%emt 0:00:00]} 32. Nf1 {[%emt 0:00:00]} Qe5 {[%emt 0:00:00]} 33. Rd1 {[%emt 0:00:00]} a5 {[%emt 0:00:00]} 34. Ne3 {[%emt 0:00:00]} Be6 {[%emt 0:00:00]} 35. Rd8 {[%emt 0:00:00]} Qc7 {[%emt 0:00:00]} 36. Rcd2 {[%emt 0:00:00]} Kf7 {[%emt 0:00:00]} 37. R8d6 {[%emt 0:00:00]} Qe7 {[%emt 0:00:00]} 38. Ra6 {[%emt 0:00:00]} Qc7 {[%emt 0:00:00]} 39. Rdd6 {[%emt 0:00:00]} Bc8 {[%emt 0:00:00]} 40. Rac6 {[%emt 0:00:00]} Qe7 {[%emt 0:00:00]} 41. Nd5 {[%emt 0:11:13]} Qg5 {[%emt 0:00:00]} 42. Rc7+ {[%emt 0:00:19]} 1-0

[Event "Seniors-LEM-65 Sachsen-Anhalt 2024"]
[Site "Magdeburg"]
[Date "2024.07.04"]
[Round "4.6"]
[White "Waltenberger, Udo"]
[Black "Erler, Rainer"]
[Result "1/2-1/2"]
[ECO "D34"]
[WhiteElo "1993"]
[BlackElo "2121"]
[Annotator "NA RC"]
[PlyCount "29"]
[EventDate "2024.06.25"]
[EventType "swiss"]
[EventCountry "GER"]
[SourceTitle "playchess.com"]
[Source "ChessBase"]
[SourceQuality "1"]
[TimeControl "40/5400+30:1800+30"]

1. Nf3 {[%emt 0:00:03]} d5 {[%emt 0:00:01]} 2. g3 {[%emt 0:00:08]} c5 {[%emt 0:00:04]} 3. Bg2 {[%emt 0:00:06]} Nc6 {[%emt 0:00:01]} 4. d4 {[%emt 0:00:10]} e6 $11 {[%emt 0:00:38]} 5. O-O {[%emt 0:00:06]} Nf6 {[%emt 0:00:08]} 6. c4 {[%emt 0:00:06]} Be7 {[%emt 0:00:23]} 7. cxd5 {[%emt 0:00:08]} exd5 {[%emt 0:00:02]} 8. Nc3 {[%emt 0:00:08]} O-O {[%emt 0:00:08]} 9. b3 {[%emt 0:00:02]} cxd4 {[%emt 0:01:04]} 10. Nxd4 {[%emt 0:00:11]} Bc5 {[%emt 0:00:27]} 11. Nxc6 {[%emt 0:08:58]} bxc6 {[%emt 0:00:15]} 12. Bb2 {[%emt 0:00:14]} Re8 {[%emt 0:02:22]} 13. e3 {[%emt 0:04:01]} Bf5 {[%emt 0:11:44]} 14. Rc1 {[%emt 0:03:00]} Bf8 {[%emt 0:09:02]} 15. Na4 {[%emt 0:04:10]} 1/2-1/2

[Event "Seniors-LEM-65 Sachsen-Anhalt 2024"]
[Site "Magdeburg"]
[Date "2024.07.04"]
[Round "4.7"]
[White "Lorenz, Dietmar"]
[Black "Leibovitch, Iziaslav"]
[Result "0-1"]
[ECO "E60"]
[WhiteElo "1981"]
[BlackElo "2105"]
[Annotator "NA RC"]
[PlyCount "83"]
[EventDate "2024.06.25"]
[EventType "swiss"]
[EventCountry "GER"]
[SourceTitle "playchess.com"]
[Source "ChessBase"]
[SourceQuality "1"]
[TimeControl "40/5400+30:1800+30"]

1. Nf3 {[%emt 0:00:02]} Nf6 {[%emt 0:00:24]} 2. c4 {[%emt 0:00:13]} g6 {[%emt 0:00:18]} 3. g3 {[%emt 0:00:25]} Bg7 {[%emt 0:00:09]} 4. Bg2 {[%emt 0:00:05]} O-O {[%emt 0:00:08]} 5. O-O {[%emt 0:00:04]} d6 {[%emt 0:00:21]} 6. d4 {[%emt 0:00:23]} Nc6 {[%emt 0:00:19]} 7. Bd2 {[%emt 0:01:01]} Ne4 {[%emt 0:04:17]} 8. Be1 {[%emt 0:00:41]} e5 {[%emt 0:10:05]} 9. d5 {[%emt 0:06:28]} Nb8 {[%emt 0:04:18]} 10. Nc3 {[%emt 0:00:26]} Nxc3 {[%emt 0:03:10]} 11. Bxc3 {[%emt 0:00:03]} f5 {[%emt 0:03:01] [#]} 12. e4 $1 {[%emt 0:03:46]} Nd7 $11 {[%emt 0:01:11]} 13. Nd2 {[%emt 0:03:28]} f4 {[%emt 0:02:06]} 14. b4 {[%emt 0:03:12]} Nf6 {[%emt 0:07:15]} 15. c5 {[%emt 0:10:16]} Nh5 {[%emt 0:03:34]} 16. g4 {[%emt 0:03:09]} f3 {[%emt 0:00:13]} 17. Bxf3 {[%emt 0:04:39]} Nf4 {[%emt 0:00:55]} 18. Bg2 {[%emt 0:02:15]} Qh4 {[%emt 0:06:06]} 19. f3 {[%emt 0:03:21]} Bd7 {[%emt 0:16:05]} 20. Nc4 {[%emt 0:09:14]} Bb5 {[%emt 0:00:53]} 21. Be1 {[%emt 0:00:23]} Qe7 {[%emt 0:00:25]} 22. Rc1 {[%emt 0:08:35]} Bh6 {[%emt 0:03:55]} 23. a4 {[%emt 0:12:26]} Bxa4 {[%emt 0:04:46]} 24. Qxa4 {[%emt 0:01:35]} Nxg2 {[%emt 0:00:58]} 25. Kxg2 {[%emt 0:00:25]} Bxc1 {[%emt 0:00:08]} 26. Na5 {[%emt 0:06:29]} b6 {[%emt 0:11:09]} 27. cxd6 {[%emt 0:01:49]} cxd6 {[%emt 0:02:17]} 28. Nc6 {[%emt 0:00:10]} Qf7 {[%emt 0:05:06]} 29. Bh4 {[%emt 0:01:12]} g5 {[%emt 0:02:51]} 30. Be1 {[%emt 0:04:09]} a6 {[%emt 0:01:27]} 31. Qb3 {[%emt 0:01:48]} Bf4 {[%emt 0:01:51]} 32. Bf2 {[%emt 0:05:21]} b5 {[%emt 0:00:56]} 33. Bb6 {[%emt 0:02:02]} Rfc8 {[%emt 0:00:47]} 34. Qd3 {[%emt 0:01:57]} h5 {[%emt 0:01:57]} 35. h3 {[%emt 0:00:21]} Kg7 {[%emt 0:00:36]} 36. Bf2 {[%emt 0:02:25]} Rh8 {[%emt 0:00:50]} 37. Bg3 {[%emt 0:00:46]} Bxg3 {[%emt 0:03:02]} 38. Kxg3 {[%emt 0:00:03]} Raf8 {[%emt 0:00:28]} 39. Qe3 {[%emt 0:01:43]} Kg6 {[%emt 0:00:22]} 40. Qd2 {[%emt 0:02:40]} hxg4 {[%emt 0:00:14]} 41. hxg4 {[%emt 0:30:06]} Qh7 {[%emt 0:30:33]} 42. Qg2 {[%emt 0:00:16]} 0-1

[Event "Seniors-LEM-65 Sachsen-Anhalt 2024"]
[Site "Magdeburg"]
[Date "2024.07.04"]
[Round "4.8"]
[White "Schober, Ralf"]
[Black "Klettke, Wolfgang"]
[Result "1-0"]
[ECO "B21"]
[WhiteElo "2090"]
[BlackElo "2008"]
[Annotator "NA RC"]
[PlyCount "68"]
[EventDate "2024.06.25"]
[EventType "swiss"]
[EventCountry "GER"]
[SourceTitle "playchess.com"]
[Source "ChessBase"]
[SourceQuality "1"]
[TimeControl "40/5400+30:1800+30"]

1. e4 {[%emt 0:00:06]} c5 {[%emt 1:31:00]} 2. Nc3 {[%emt 1:31:24]} Nc6 {[%emt 0:00:30]} 3. Bb5 {[%emt 0:00:30]} g6 {[%emt 0:00:30]} 4. Bxc6 {[%emt 0:00:00]} dxc6 {[%emt 0:00:00]} 5. d3 {[%emt 0:00:00]} Bg7 {[%emt 0:00:00]} 6. f4 {[%emt 0:00:00]} Nf6 {[%emt 0:00:00]} 7. Nf3 {[%emt 0:00:00]} Bg4 {[%emt 0:00:00]} 8. O-O {[%emt 0:00:00]} O-O {[%emt 0:00:00]} 9. Qe1 {[%emt 0:00:00] B21: Sicilian: 2 f4 and Morra Gambit.} Bxf3 {[%emt 0:00:00]} 10. Rxf3 {[%emt 0:00:00]} e6 {[%emt 0:00:00]} 11. Be3 {[%emt 0:00:00]} Nd7 {[%emt 0:00:00]} 12. Kh1 {[%emt 0:00:00]} Bd4 {[%emt 0:00:00]} 13. Bd2 {[%emt 0:00:00]} f5 {[%emt 0:00:00]} 14. Nd1 {[%emt 0:00:00]} Bg7 {[%emt 0:00:00]} 15. e5 {[%emt 0:00:00]} Nb6 {[%emt 0:00:00]} 16. Be3 {[%emt 0:00:00]} Qe7 {[%emt 0:00:00]} 17. Qc3 {[%emt 0:00:00]} Nd7 {[%emt 0:00:00]} 18. Nf2 {[%emt 0:00:00]} Rfe8 {[%emt 0:00:00]} 19. Qb3 {[%emt 0:00:00]} b6 $14 {[%emt 0:00:00]} ({Black should try} 19... g5 $11) 20. Nh3 {[%emt 0:00:00]} h6 {[%emt 0:00:00]} 21. Rff1 {[%emt 0:00:00]} Kh7 {[%emt 0:00:00]} 22. Rad1 {[%emt 0:00:00]} b5 {[%emt 0:00:00]} 23. c4 {[%emt 0:00:00]} b4 {[%emt 0:00:00]} 24. d4 {[%emt 0:00:00]} a5 {[%emt 0:00:00]} 25. d5 {[%emt 0:00:00]} cxd5 {[%emt 0:00:00]} 26. cxd5 {[%emt 0:00:00]} exd5 {[%emt 0:00:00]} 27. Qxd5 {[%emt 0:00:00]} Red8 {[%emt 0:00:00]} 28. Qf3 {[%emt 0:00:00]} Nb6 {[%emt 0:00:00]} 29. b3 {[%emt 0:00:00]} a4 {[%emt 0:00:00]} 30. Qc6 {[%emt 0:00:00]} Nd7 {[%emt 0:00:00]} 31. Rd6 {[%emt 0:00:00]} Nxe5 {[%emt 0:00:00]} 32. fxe5 {[%emt 0:00:00]} Qxe5 {[%emt 0:00:00]} 33. Rxd8 {[%emt 0:00:00]} Rxd8 {[%emt 0:00:00]} 34. Qxc5 {[%emt 0:00:00]} axb3 {[%emt 0:00:00]} 1-0

[Event "Seniors-LEM-65 Sachsen-Anhalt 2024"]
[Site "Magdeburg"]
[Date "2024.07.04"]
[Round "4.9"]
[White "Waagener, Ulrich"]
[Black "Christen, Pierre"]
[Result "1/2-1/2"]
[ECO "D00"]
[WhiteElo "2080"]
[BlackElo "1946"]
[Annotator "NA RC"]
[PlyCount "37"]
[EventDate "2024.06.25"]
[EventType "swiss"]
[EventCountry "GER"]
[SourceTitle "playchess.com"]
[Source "ChessBase"]
[SourceQuality "1"]
[TimeControl "40/5400+30:1800+30"]

1. d4 {[%emt 0:00:05]} d5 {[%emt 0:00:32]} 2. Bg5 {[%emt 0:00:43]} h6 {[%emt 0:00:27]} 3. Bh4 {[%emt 0:00:27]} Nf6 {[%emt 0:03:08]} 4. Bxf6 {[%emt 0:01:21]} exf6 {[%emt 0:00:11]} 5. e3 {[%emt 0:00:41]} Bd6 {[%emt 0:01:04]} 6. Bd3 {[%emt 0:01:36]} O-O {[%emt 0:04:48]} 7. Nc3 {[%emt 0:02:28]} c6 {[%emt 0:00:42]} 8. Qf3 {[%emt 0:02:30]} Re8 {[%emt 0:03:12]} 9. Nge2 {[%emt 0:03:56]} Nd7 {[%emt 0:01:21]} 10. O-O-O {[%emt 1:21:43]} Nf8 {[%emt 1:20:05]} 11. Nf4 {[%emt 0:00:00]} Qd7 {[%emt 0:00:00]} 12. h3 {[%emt 0:00:00]} b5 {[%emt 0:00:00]} 13. e4 {[%emt 0:00:00]} Bxf4+ {[%emt 0:00:00]} 14. Qxf4 {[%emt 0:00:00]} b4 {[%emt 0:00:00]} 15. Na4 {[%emt 0:00:00]} Ng6 {[%emt 0:00:00]} 16. Qf3 {[%emt 0:00:00]} Nh4 {[%emt 0:00:00]} 17. Qf4 {[%emt 0:00:00]} Ng6 {[%emt 0:00:00]} 18. Qf3 {[%emt 0:00:00]} Nh4 {[%emt 0:00:00]} 19. Qf4 {[%emt 0:00:00]} 1/2-1/2